bitfinex/quotes_SOLUSD_20240530
["timestamp","ask_amount","ask_price","bid_price","bid_amount"]
[1717065060614,2.2341,165.61,165.56,60.0]
[1717065061109,7.04,165.6,165.56,60.0]
[1717065067507,2.234,165.62,165.56,62.2348]
[1717065067706,7.04,165.61,165.56,62.2348]
[1717065068525,2.234,165.62,165.58,60.0]
[1717065069099,9.274,165.62,165.58,60.0]
[1717065069406,7.04,165.61,165.58,60.0]
[1717065071024,2.2339,165.63,165.58,96.29]
[1717065071210,9.2739,165.63,165.58,96.29]
[1717065071523,7.04,165.65,165.6,60.0]
[1717065071919,2.2337,165.64,165.6,114.42]
[1717065072302,28.16,165.76,165.6,114.42]
[1717065072303,90.62804792,165.79,165.66,60.0]
[1717065072502,2.2329,165.7,165.66,60.0]
[1717065072704,7.04,165.69,165.64,60.0]
[1717065072910,2.2329,165.7,165.64,62.2337]
[1717065073327,7.04,165.68,165.64,62.2337]
[1717065073955,7.04,165.69,165.64,62.2337]
[1717065074333,7.04,165.68,165.63,18.13]
[1717065074624,7.04,165.68,165.63,20.3638]
[1717065074832,7.04,165.68,165.64,60.0]
[1717065075510,2.233,165.7,165.64,60.0]
[1717065075743,7.04,165.68,165.64,62.2337]
[1717065078421,2.2328,165.71,165.64,62.2337]
[1717065078622,7.04,165.68,165.64,62.2337]
[1717065078931,2.2326,165.72,165.66,2.2334]
[1717065079229,2.2326,165.72,165.65,2.2335]
[1717065079414,7.04,165.69,165.65,2.2335]
[1717065080732,7.04,165.68,165.64,62.2337]
[1717065083905,7.04,165.68,165.65,2.2335]
[1717065085136,7.04,165.69,165.65,2.2335]
[1717065085428,2.2328,165.71,165.66,60.0]
[1717065085636,7.04,165.69,165.66,60.0]
[1717065085836,2.2328,165.71,165.66,60.0]
[1717065086041,7.04,165.69,165.66,60.0]
[1717065086832,2.2327,165.72,165.66,98.5234]
[1717065087039,7.04,165.71,165.66,98.5234]
[1717065087419,2.2327,165.72,165.66,98.5234]
[1717065087727,7.04,165.7,165.66,98.5234]
[1717065088518,2.2327,165.72,165.66,98.5234]
[1717065088713,7.04,165.7,165.66,98.5234]
[1717065089936,7.04,165.7,165.68,60.0]
[1717065090731,2.2327,165.72,165.7,60.0]
[1717065090909,7.04,165.71,165.7,60.0]
[1717065091109,7.04,165.71,165.66,98.5234]
[1717065091331,7.04,165.67,165.66,114.42]
[1717065091634,7.04,165.67,165.66,96.29]
[1717065092325,7.04,165.67,165.66,98.5234]
[1717065093222,7.04,165.67,165.66,96.29]
[1717065094726,2.2328,165.71,165.66,98.5234]
[1717065094944,7.04,165.67,165.66,96.29]
[1717065095247,2.2328,165.71,165.66,96.29]
[1717065095541,7.04,165.67,165.66,96.29]
[1717065096747,2.2328,165.71,165.66,96.29]
[1717065096941,7.04,165.67,165.66,96.29]
[1717065097439,2.2328,165.71,165.66,96.29]
[1717065097628,7.04,165.67,165.66,96.29]
[1717065097839,2.2328,165.71,165.66,96.29]
[1717065098030,7.04,165.67,165.66,96.29]
[1717065099550,2.2328,165.71,165.66,96.29]
[1717065099853,7.04,165.67,165.66,96.29]
[1717065100355,2.2328,165.71,165.66,96.29]
[1717065100651,7.04,165.67,165.66,96.29]
[1717065101263,7.04,165.67,165.63,2.2338]
[1717065101436,7.04,165.64,165.63,2.2338]
[1717065102164,7.04,165.66,165.64,60.0]
[1717065102530,7.04,165.66,165.64,116.6536]
[1717065103255,7.04,165.67,165.66,60.0]
[1717065104160,2.2328,165.71,165.66,60.0]
[1717065104455,7.04,165.67,165.66,60.0]
[1717065104773,2.2329,165.7,165.66,60.0]
[1717065104952,2.2327,165.72,165.69,60.0]
[1717065105248,7.04,165.7,165.67,96.29]
[1717065105461,7.04,165.68,165.67,36.29]
[1717065106672,2.2328,165.71,165.67,36.29]
[1717065106860,7.04,165.68,165.67,36.29]
[1717065107262,2.2328,165.71,165.67,36.29]
[1717065107567,7.04,165.68,165.67,36.29]
[1717065108086,2.2327,165.72,165.67,96.29]
[1717065108575,7.04,165.68,165.67,96.29]
[1717065110241,2.2327,165.72,165.67,96.29]
[1717065110441,7.04,165.68,165.67,96.29]
[1717065110860,2.2327,165.72,165.67,96.29]
[1717065111078,7.04,165.68,165.67,96.29]
[1717065112257,2.2327,165.72,165.67,96.29]
[1717065112460,2.2327,165.72,165.67,98.5233]
[1717065112757,7.04,165.68,165.67,98.5233]
[1717065113077,2.2327,165.72,165.67,98.5233]
[1717065113451,7.04,165.68,165.67,98.5233]
[1717065114474,7.04,165.68,165.67,96.29]
[1717065116372,2.2328,165.71,165.67,96.29]
[1717065116558,2.2327,165.72,165.67,96.29]
[1717065116744,7.04,165.68,165.67,96.29]
[1717065118067,2.2328,165.71,165.67,96.29]
[1717065118456,7.04,165.68,165.67,96.29]
[1717065121778,2.2327,165.72,165.67,96.29]
[1717065121955,7.04,165.68,165.67,96.29]
[1717065123974,7.04,165.68,165.64,36.29]
[1717065124185,7.04,165.65,165.63,60.0]
[1717065124404,7.04,165.64,165.63,60.0]
[1717065124681,28.16,165.68,165.63,62.2338]
[1717065125178,7.04,165.64,165.63,62.2338]
[1717065125379,28.16,165.68,165.63,62.2338]
[1717065125883,7.04,165.65,165.63,62.2338]
[1717065127480,11.1635,165.72,165.63,60.0]
[1717065127481,2.2332,165.68,165.63,60.0]
[1717065127685,7.04,165.65,165.63,60.0]
[1717065127986,7.04,165.64,165.63,60.0]
[1717065128648,7.04,165.64,165.63,62.2338]
[1717065130855,2.2331,165.69,165.63,62.2338]
[1717065131067,7.04,165.65,165.63,62.2338]
[1717065131277,2.2331,165.69,165.63,62.2338]
[1717065131585,7.04,165.65,165.63,62.2338]
[1717065131882,2.2331,165.69,165.63,62.2338]
[1717065132072,2.2333,165.68,165.63,60.0]
[1717065132276,7.04,165.65,165.63,60.0]
[1717065133276,7.04,165.65,165.63,62.2338]
[1717065134070,7.04,165.65,165.63,60.0]
[1717065134879,7.04,165.65,165.63,62.2338]
[1717065135079,4.4651,165.73,165.66,36.29]
[1717065135259,2.233,165.7,165.66,36.29]
[1717065135460,7.04,165.67,165.66,36.29]
[1717065136363,2.2329,165.71,165.68,60.0]
[1717065136574,7.04,165.69,165.68,60.0]
[1717065142296,7.04,165.69,165.66,36.29]
[1717065142493,7.04,165.67,165.65,98.5235]
[1717065142699,7.04,165.66,165.65,98.5235]
[1717065142899,2.2329,165.71,165.65,98.5235]
[1717065143086,7.04,165.67,165.65,98.5235]
[1717065144080,2.2329,165.71,165.65,98.5235]
[1717065144308,7.04,165.67,165.65,98.5235]
[1717065144483,2.2329,165.71,165.65,98.5235]
[1717065144680,7.04,165.67,165.65,98.5235]
[1717065144891,2.2329,165.71,165.67,60.0]
[1717065145096,7.04,165.68,165.67,60.0]
[1717065145600,2.2327,165.72,165.67,60.0]
[1717065145778,7.04,165.68,165.67,60.0]
[1717065148282,2.2328,165.71,165.67,60.0]
[1717065148602,7.04,165.68,165.67,60.0]
[1717065149106,2.2328,165.71,165.67,60.0]
[1717065149404,7.04,165.68,165.67,60.0]
[1717065151082,2.2327,165.72,165.67,60.0]
[1717065151403,2.2327,165.72,165.69,60.0]
[1717065151725,7.04,165.7,165.69,60.0]
[1717065152980,2.2327,165.72,165.69,60.0]
[1717065153201,7.04,165.7,165.69,60.0]
[1717065153880,2.2326,165.73,165.69,60.0]
[1717065154210,7.04,165.7,165.69,60.0]
[1717065156116,7.04,165.7,165.69,60.0]
[1717065156423,32.6244,165.76,165.71,60.0]
[1717065156424,28.16,165.76,165.71,60.0]
[1717065156581,7.04,165.72,165.71,96.29]
[1717065156788,2.2321,165.76,165.73,60.0]
[1717065156994,7.04,165.74,165.73,60.0]
[1717065157308,7.04,165.74,165.73,96.29]
[1717065157483,30.3921,165.76,165.73,60.0]
[1717065157689,30.3921,165.76,165.71,36.29]
[1717065157690,2.2322,165.75,165.71,96.29]
[1717065157891,2.2322,165.75,165.69,60.0]
[1717065158192,7.04,165.7,165.69,60.0]
[1717065158701,7.04,165.7,165.69,96.29]
[1717065159803,28.16,165.76,165.7,2.2328]
[1717065160117,2.2321,165.76,165.71,96.29]
[1717065160320,7.04,165.72,165.71,96.29]
[1717065160531,2.232,165.77,165.73,60.0]
[1717065160704,7.04,165.74,165.73,60.0]
[1717065162099,0.8262503,165.81,165.75,60.0]
[1717065162298,7.04,165.76,165.75,60.0]
[1717065162820,7.04,165.76,165.75,96.29]
[1717065163111,0.8262503,165.81,165.75,96.29]
[1717065163112,3.0576503,165.81,165.77,60.0]
[1717065163311,7.04,165.78,165.77,60.0]
[1717065164295,7.04,165.78,165.75,96.29]
[1717065164501,7.04,165.76,165.75,96.29]
[1717065166009,3.0577503,165.81,165.75,96.29]
[1717065166192,7.04,165.76,165.75,98.5222]
[1717065166392,3.0577503,165.81,165.77,60.0]
[1717065166601,7.04,165.78,165.77,60.0]
[1717065167689,3.0577503,165.81,165.77,60.0]
[1717065168015,7.04,165.78,165.77,60.0]
[1717065169100,0.8262503,165.81,165.77,60.0]
[1717065169296,7.04,165.78,165.77,60.0]
[1717065169504,0.8262503,165.81,165.77,60.0]
[1717065170108,7.04,165.78,165.77,60.0]
[1717065171189,0.8262503,165.81,165.79,60.0]
[1717065171397,7.04,165.8,165.79,60.0]
[1717065172329,0.8262503,165.81,165.79,60.0]
[1717065172623,7.04,165.8,165.79,60.0]
[1717065172911,0.8262503,165.81,165.79,60.0]
[1717065173121,7.04,165.8,165.79,60.0]
[1717065173624,7.8662503,165.81,165.79,60.0]
[1717065174119,0.8262503,165.81,165.79,96.29]
[1717065174325,7.8662503,165.81,165.79,98.5216]
[1717065175015,7.04,165.8,165.79,96.29]
[1717065177523,7.04,165.8,165.79,98.5217]
[1717065177905,7.8662503,165.81,165.79,98.5217]
[1717065180223,7.8662503,165.81,165.79,96.29]
[1717065180404,7.04,165.8,165.79,96.29]
[1717065180606,7.04,165.8,165.79,98.5217]
[1717065181130,0.8262503,165.81,165.79,98.5217]
[1717065181313,7.8662503,165.81,165.79,98.5217]
[1717065183318,0.8262503,165.81,165.77,96.29]
[1717065183524,7.04,165.78,165.76,388.7]
[1717065183833,7.04,165.77,165.76,388.7]
[1717065184326,7.04,165.77,165.75,60.0]
[1717065184520,2.2316,165.8,165.75,60.0]
[1717065184521,7.04,165.76,165.75,60.0]
[1717065184715,7.04,165.76,165.73,96.29]
[1717065184921,7.04,165.75,165.73,96.29]
[1717065185117,7.04,165.75,165.73,98.5225]
[1717065185313,7.04,165.74,165.72,36.29]
[1717065185531,7.04,165.73,165.72,36.29]
[1717065186521,2.2318,165.78,165.72,38.5226]
[1717065186835,7.04,165.74,165.73,98.5225]
[1717065187030,7.04,165.76,165.71,388.7]
[1717065187218,2.232,165.77,165.71,390.9327]
[1717065187538,7.04,165.72,165.71,390.9327]
[1717065187721,7.04,165.72,165.71,388.7]
[1717065189739,7.04,165.72,165.67,45.5632]
[1717065189913,7.04,165.68,165.67,45.5632]
[1717065190117,2.2324,165.74,165.68,2.2331]
[1717065190311,7.04,165.69,165.68,2.2331]
[1717065190537,7.04,165.69,165.68,62.2331]
[1717065191633,7.04,165.69,165.68,60.0]
[1717065193244,7.04,165.69,165.68,62.2332]
[1717065193838,7.04,165.69,165.68,60.0]
[1717065195942,7.04,165.69,165.64,96.29]
[1717065196148,7.04,165.66,165.65,2.2335]
[1717065196350,28.16,165.76,165.64,96.29]
[1717065196351,2.2327,165.72,165.68,60.0]
[1717065196645,7.04,165.69,165.68,60.0]
[1717065197745,7.04,165.69,165.66,96.29]
[1717065197948,7.04,165.67,165.66,98.5234]
[1717065198141,7.04,165.68,165.66,98.5234]
[1717065198448,2.2326,165.73,165.68,60.0]
[1717065198650,7.04,165.7,165.68,60.0]
[1717065199645,2.2326,165.73,165.68,60.0]
[1717065199825,2.2324,165.74,165.68,98.5231]
[1717065200023,2.2326,165.73,165.68,96.29]
[1717065200351,7.04,165.69,165.66,62.2333]
[1717065200551,7.04,165.68,165.66,62.2333]
[1717065200943,7.04,165.68,165.66,60.0]
[1717065201129,7.04,165.68,165.66,62.2334]
[1717065204366,2.2327,165.72,165.67,2.2333]
[1717065204538,7.04,165.68,165.67,2.2333]
[1717065204733,7.04,165.68,165.66,62.2334]
[1717065205139,2.2327,165.72,165.66,62.2334]
[1717065205455,7.04,165.68,165.66,62.2334]
[1717065206555,7.04,165.69,165.68,60.0]
[1717065206940,2.2326,165.73,165.68,60.0]
[1717065207253,2.2326,165.73,165.7,60.0]
[1717065207471,7.04,165.71,165.7,60.0]
[1717065207763,7.04,165.71,165.68,96.29]
[1717065207942,7.04,165.69,165.68,96.29]
[1717065208431,7.04,165.69,165.68,60.0]
[1717065208938,4.4625,165.83,165.74,36.29]
[1717065209145,7.04,165.75,165.74,36.29]
[1717065209848,2.2317,165.79,165.74,36.29]
[1717065210053,7.04,165.76,165.74,36.29]
[1717065210559,2.2318,165.78,165.74,36.29]
[1717065210560,7.04,165.75,165.74,36.29]
[1717065210748,7.04,165.75,165.73,60.0]
[1717065211364,7.04,165.74,165.73,60.0]
[1717065211572,7.04,165.74,165.71,60.0]
[1717065211746,8.9265,165.8,165.71,60.0]
[1717065211747,7.04,165.76,165.71,60.0]
[1717065212063,7.04,165.72,165.71,60.0]
[1717065213052,7.04,165.72,165.69,98.5229]
[1717065213256,7.04,165.7,165.69,96.29]
[1717065215167,7.04,165.7,165.69,98.523]
[1717065215669,2.2323,165.75,165.71,60.0]
[1717065215850,7.04,165.72,165.71,60.0]
[1717065216671,7.04,165.73,165.71,60.0]
[1717065218766,7.04,165.72,165.69,96.29]
[1717065218968,7.04,165.71,165.69,96.29]
[1717065219542,7.04,165.7,165.69,96.29]
[1717065219745,7.04,165.7,165.69,60.0]
[1717065221953,2.2324,165.74,165.69,60.0]
[1717065222268,7.04,165.7,165.69,60.0]
[1717065224751,7.04,165.7,165.68,2.2332]
[1717065224955,7.04,165.69,165.68,2.2332]
[1717065225974,2.2324,165.74,165.68,2.2332]
[1717065226298,7.04,165.69,165.68,2.2332]
[1717065227569,7.04,165.7,165.69,60.0]
[1717065227763,7.04,165.72,165.69,62.233]
[1717065228079,7.04,165.73,165.69,62.233]
[1717065228884,2.2323,165.75,165.69,62.233]
[1717065229070,7.04,165.73,165.69,60.0]
[1717065229267,7.04,165.73,165.69,62.233]
[1717065229875,7.04,165.72,165.69,62.233]
[1717065230266,7.04,165.72,165.69,60.0]
[1717065230800,7.04,165.72,165.69,62.233]
[1717065231164,7.04,165.72,165.69,60.0]
[1717065231368,7.04,165.71,165.69,60.0]
[1717065239694,2.2324,165.74,165.69,60.0]
[1717065240399,2.2323,165.75,165.69,60.0]
[1717065240578,2.2323,165.75,165.69,62.233]
[1717065241487,2.2324,165.74,165.69,60.0]
[1717065242505,2.2325,165.73,165.69,60.0]
[1717065244400,28.16,165.76,165.69,60.0]
[1717065244804,2.2324,165.74,165.69,60.0]
[1717065247486,7.04,165.72,165.69,60.0]
[1717065249913,2.2323,165.75,165.71,60.0]
[1717065250113,7.04,165.73,165.71,60.0]
[1717065250334,9.7522503,165.81,165.73,60.0]
[1717065250520,2.2317,165.79,165.75,60.0]
[1717065250822,3.0577503,165.81,165.75,62.2322]
[1717065250989,7.04,165.78,165.75,98.5222]
[1717065251193,0.8262503,165.81,165.76,2.2321]
[1717065251497,7.04,165.77,165.76,2.2321]
[1717065251700,7.04,165.77,165.75,98.5222]
[1717065252219,7.04,165.77,165.76,30.0]
[1717065254322,2.2316,165.8,165.76,30.0]
[1717065254523,7.04,165.77,165.76,30.0]
[1717065255015,3.0576503,165.81,165.76,30.0]
[1717065255312,7.04,165.77,165.76,30.0]
[1717065257228,3.0577503,165.81,165.76,30.0]
[1717065257229,3.0577503,165.81,165.77,60.0]
[1717065257530,7.04,165.78,165.77,90.0]
[1717065258415,3.0577503,165.81,165.77,90.0]
[1717065258727,7.04,165.78,165.77,90.0]
[1717065259110,7.04,165.78,165.77,60.0]
[1717065262013,7.04,165.78,165.75,96.29]
[1717065262230,7.04,165.76,165.75,96.29]
[1717065265808,0.8262503,165.81,165.77,60.0]
[1717065265809,3.0576503,165.81,165.77,60.0]
[1717065266016,0.8262503,165.81,165.77,60.0]
[1717065266238,7.04,165.78,165.77,60.0]
[1717065267714,7.04,165.78,165.75,98.5222]
[1717065267913,7.04,165.76,165.75,96.29]
[1717065268638,7.04,165.76,165.75,98.5222]
[1717065271333,0.8262503,165.81,165.78,60.0]
[1717065271530,0.8262503,165.81,165.78,116.6518]
[1717065271726,0.8262503,165.81,165.8,96.29]
[1717065272232,7.8662503,165.81,165.8,96.29]
[1717065275428,7.8662503,165.81,165.8,60.0]
[1717065275641,0.8262503,165.81,165.8,60.0]
[1717065275826,7.8662503,165.81,165.8,96.29]
[1717065276235,0.8262503,165.81,165.8,96.29]
[1717065276438,7.8662503,165.81,165.8,96.29]
[1717065280447,0.8262503,165.81,165.8,96.29]
[1717065280862,7.8662503,165.81,165.8,96.29]
[1717065281962,0.8262503,165.81,165.8,143.3096]
[1717065285645,0.8262503,165.81,165.8,152.236]
[1717065286966,0.8262503,165.81,165.8,540.936]
[1717065288333,0.8262503,165.81,165.8,547.976]
[1717065288751,0.8262503,165.81,165.8,540.936]
[1717065291656,0.8262503,165.81,165.8,547.976]
[1717065292381,11.1487,165.94,165.8,547.976]
[1717065292382,8.9177,165.97,165.87,96.29]
[1717065292548,2.23,165.92,165.87,96.29]
[1717065292747,7.04,165.88,165.87,96.29]
[1717065293356,2.23,165.92,165.87,96.29]
[1717065293691,7.04,165.88,165.87,98.5206]
[1717065294356,2.2299,165.93,165.89,60.0]
[1717065294657,7.04,165.9,165.89,60.0]
[1717065295059,7.04,165.9,165.84,96.29]
[1717065295246,28.16,165.92,165.83,390.9311]
[1717065295247,7.04,165.85,165.83,390.9311]
[1717065295455,7.04,165.84,165.83,388.7]
[1717065295653,2.2304,165.89,165.84,60.0]
[1717065295892,7.04,165.85,165.84,60.0]
[1717065296759,7.04,165.85,165.83,424.99]
[1717065296959,7.04,165.84,165.83,424.99]
[1717065298675,7.04,165.84,165.83,36.29]
[1717065299870,2.2305,165.88,165.83,36.29]
[1717065300070,7.04,165.84,165.83,36.29]
[1717065300575,16.0914,165.93,165.85,60.0]
[1717065300786,2.2301,165.91,165.85,62.2308]
[1717065300952,7.04,165.86,165.85,62.2308]
[1717065301154,2.2301,165.91,165.85,62.2308]
[1717065301455,7.04,165.86,165.85,60.0]
[1717065302052,2.2304,165.89,165.85,60.0]
[1717065302256,420.23358203,166.3,165.85,60.0]
[1717065302257,16.5556,165.97,165.88,60.0]
[1717065302486,29.9318,165.97,165.88,60.0]
[1717065302650,7.04,165.9,165.88,60.0]
[1717065302854,2.2297,165.94,165.91,60.0]
[1717065303168,7.04,165.92,165.91,60.0]
[1717065303483,0.8262503,165.98,165.91,60.0]
[1717065303698,7.04,165.92,165.91,60.0]
[1717065303980,0.8262503,165.98,165.93,60.0]
[1717065304275,0.8262503,165.98,165.91,96.29]
[1717065304276,2.2293,165.97,165.91,96.29]
[1717065304458,7.04,165.92,165.91,96.29]
[1717065304977,2.2293,165.97,165.93,60.0]
[1717065305157,7.04,165.94,165.91,96.29]
[1717065305473,2.2294,165.96,165.91,96.29]
[1717065305680,7.04,165.92,165.91,96.29]
[1717065305858,2.2293,165.97,165.91,96.29]
[1717065306176,7.04,165.92,165.91,96.29]
[1717065306380,3.0553503,165.98,165.93,60.0]
[1717065306580,7.04,165.94,165.93,60.0]
[1717065306957,3.0553503,165.98,165.93,96.29]
[1717065307175,0.8262503,165.98,165.95,60.0]
[1717065307369,7.04,165.96,165.95,60.0]
[1717065308276,3.0554503,165.98,165.95,60.0]
[1717065308577,0.8262503,165.98,165.95,60.0]
[1717065308985,7.04,165.96,165.95,60.0]
[1717065309185,0.8262503,165.98,165.95,96.29]
[1717065309402,0.8262503,165.98,165.97,60.0]
[1717065309691,7.8662503,165.98,165.97,60.0]
[1717065309867,0.8262503,165.98,165.97,60.0]
[1717065310065,7.8662503,165.98,165.97,60.0]
[1717065310580,0.8262503,165.98,165.97,60.0]
[1717065310970,7.8662503,165.98,165.97,60.0]
[1717065311168,0.8262503,165.98,165.97,60.0]
[1717065311361,0.8262503,165.98,165.97,98.5193]
[1717065313881,0.8262503,165.98,165.97,132.485]
[1717065314062,0.8262503,165.98,165.97,525.6436]
[1717065314976,0.8262503,165.98,165.97,487.2193]
[1717065315606,7.8662503,165.98,165.97,484.99]
[1717065316472,7.8662503,165.98,165.95,98.5195]
[1717065316683,7.04,165.97,165.95,98.5195]
[1717065316882,7.8662503,165.98,165.97,96.29]
[1717065318094,0.8262503,165.98,165.97,98.5193]
[1717065318893,0.8262503,165.98,165.97,116.6493]
[1717065320900,0.8262503,165.98,165.97,521.0871]
[1717065321197,0.8262503,165.98,165.97,532.5857]
[1717065321790,0.8262503,165.98,165.97,539.2736]
[1717065322796,0.8262503,165.98,165.97,521.0871]
[1717065323003,0.8262503,165.98,165.97,487.2193]
[1717065323184,0.8262503,165.98,165.97,505.3493]
[1717065324379,0.8262503,165.98,165.97,487.2193]
[1717065324689,7.8662503,165.98,165.97,487.2193]
[1717065324895,7.8662503,165.98,165.97,98.5193]
[1717065325271,7.8662503,165.98,165.97,96.29]
[1717065325677,7.8662503,165.98,165.97,98.5193]
[1717065326172,7.8662503,165.98,165.97,96.29]
[1717065326577,0.8262503,165.98,165.97,96.29]
[1717065326778,7.8662503,165.98,165.97,98.5193]
[1717065327078,0.8262503,165.98,165.97,98.5193]
[1717065328291,7.8662503,165.98,165.97,98.5193]
[1717065328795,0.8262503,165.98,165.97,98.5193]
[1717065331701,0.8262503,165.98,165.97,96.29]
[1717065332606,0.8262503,165.98,165.94,18.13]
[1717065332607,7.8662503,165.98,165.95,60.0]
[1717065332908,7.04,165.96,165.95,60.0]
[1717065333206,7.04,165.96,165.95,62.2295]
[1717065334005,7.04,165.96,165.95,98.5195]
[1717065334210,0.8262503,165.98,165.97,60.0]
[1717065335597,7.8662503,165.98,165.97,60.0]
[1717065337804,7.8662503,165.98,165.97,96.29]
[1717065338007,0.8262503,165.98,165.97,116.6493]
[1717065342703,0.8262503,165.98,165.97,505.3493]
[1717065343598,0.8262503,165.98,165.97,516.4428]
[1717065345500,0.8262503,165.98,165.97,516.4958]
[1717065346817,0.8262503,165.98,165.97,509.8079]
[1717065346999,0.8262503,165.98,165.97,516.3148]
[1717065347892,2.5568988,166.06,166.01,96.29]
[1717065348095,0.3287988,166.06,166.04,60.0]
[1717065348426,7.04,166.05,166.04,60.0]
[1717065348597,7.04,166.05,166.02,96.29]
[1717065349719,7.04,166.05,166.02,98.5186]
[1717065350145,7.04,166.03,166.02,98.5186]
[1717065350895,0.3287988,166.06,166.02,98.5186]
[1717065351095,7.04,166.04,166.02,98.5186]
[1717065351524,7.04,166.03,166.02,96.29]
[1717065352929,7.04,166.03,166.0,60.0]
[1717065353129,7.04,166.01,166.0,60.0]
[1717065356625,6.135,166.05,166.02,2.2286]
[1717065356816,7.04,166.03,166.0,60.0]
[1717065357017,7.04,166.01,166.0,62.2288]
[1717065357539,0.3287988,166.06,166.03,60.0]
[1717065357731,7.04,166.04,166.01,98.5187]
[1717065357928,7.04,166.02,166.01,96.29]
[1717065358240,0.3287988,166.06,166.03,60.0]
[1717065358422,7.04,166.04,166.03,60.0]
[1717065359536,0.3287988,166.06,166.03,60.0]
[1717065359712,7.04,166.04,166.03,60.0]
[1717065360235,0.3287988,166.06,166.05,60.0]
[1717065360438,7.3687988,166.06,166.05,60.0]
[1717065360824,7.3687988,166.06,166.03,96.29]
[1717065361023,7.04,166.04,166.03,96.29]
[1717065362013,0.3287988,166.06,166.03,96.29]
[1717065362219,7.04,166.04,166.03,96.29]
[1717065362924,0.3287988,166.06,166.03,96.29]
[1717065363130,7.04,166.04,166.03,96.29]
[1717065366739,0.3287988,166.06,166.03,96.29]
[1717065367046,0.3287988,166.06,166.05,60.0]
[1717065367340,7.3687988,166.06,166.03,98.5184]
[1717065367648,0.3287988,166.06,166.05,60.0]
[1717065367830,7.3687988,166.06,166.05,60.0]
[1717065368949,0.3287988,166.06,166.05,60.0]
[1717065369146,7.3687988,166.06,166.05,60.0]
[1717065369835,7.3687988,166.06,166.03,96.29]
[1717065370144,7.04,166.04,166.02,2.2285]
[1717065370351,7.04,166.03,166.0,424.99]
[1717065370553,7.04,166.01,166.0,427.2189]
[1717065370848,6.2749,166.05,166.01,60.0]
[1717065371042,7.04,166.02,166.01,60.0]
[1717065373350,0.3287988,166.06,166.03,60.0]
[1717065373746,7.04,166.04,166.03,60.0]
[1717065374353,0.3287988,166.06,166.03,60.0]
[1717065374553,0.3287988,166.06,166.05,60.0]
[1717065374758,7.3687988,166.06,166.05,60.0]
[1717065375534,0.3287988,166.06,166.05,60.0]
[1717065375753,7.3687988,166.06,166.05,60.0]
[1717065375956,0.3287988,166.06,166.05,60.0]
[1717065376153,7.3687988,166.06,166.05,60.0]